lending/lending_fUSD_20240410
["ID","MTS","AMOUNT","RATE_DAILY","PERIOD"]
[322073871,1712743838990,-151.0,0.00021,2]
[322073872,1712743839000,-151.0,0.00021,2]
[322073873,1712743839009,-151.0,0.00021,2]
[322073874,1712743839018,-151.0,0.00021,2]
[322073875,1712743839027,-151.0,0.00021,2]
[322073876,1712743839036,-151.0,0.00021,2]
[322073877,1712743839048,-151.0,0.00021,2]
[322073878,1712743839057,-151.0,0.00021,2]
[322073879,1712743839067,-151.0,0.00021,2]
[322073880,1712743839076,-151.0,0.00021,2]
[322073881,1712743839086,-151.0,0.00021,2]
[322073882,1712743839095,-158.444861,0.00021,2]
[322073883,1712743839104,-500.0,0.00021073,2]
[322073884,1712743839113,-8598.41229754,0.00021129,3]
[322073885,1712743839126,-11401.58770246,0.00021129,3]
[322073886,1712743839135,-2147.0,0.00021129,3]
[322073887,1712743839144,-2423.95,0.00021218,2]
[322073888,1712743839153,-155.85557092,0.00021275,2]
[322073889,1712743839163,-500.0,0.00021347,2]
[322073890,1712743839172,-519.63,0.0002137,2]
[322073891,1712743839181,-1155.4,0.00021372,2]
[322073892,1712743839191,-2423.95,0.00021492,2]
[322073893,1712743839202,-311.84,0.00021509,2]
[322073894,1712743839211,-8666.62055554,0.00021536,2]
[322073895,1712743839223,-500.0,0.00021621,2]
[322073896,1712743839237,-2423.95,0.00021766,2]
[322073897,1712743839249,-586.0,0.0002178,2]
[322073898,1712743839259,-524.0,0.0002178,2]
[322073899,1712743839269,-167.49,0.00021783,2]
[322073900,1712743839280,-155.85557092,0.0002185,2]
[322073901,1712743839289,-790.9808523,0.000219,2]
[322073902,1712743839301,-151.0,0.00021918,2]
[322073903,1712743839312,-8306.57,0.00021918,2]
[322073904,1712743839321,-250.0,0.00021918,2]
[322073905,1712743839330,-250.0,0.00021918,2]
[322073906,1712743839340,-150.0,0.00021918,2]
[322073907,1712743839349,-500.72724174,0.00021997,2]
[322073908,1712743839358,-672.99687868,0.00022,2]
[322073910,1712743839369,-7720.23870151,0.00022,2]
[322073911,1712743839378,-562.65039884,0.00022,2]
[322073912,1712743839386,-206.5457095,0.00022,2]
[322073913,1712743839396,-213274.57864994,0.00022,2]
[322073914,1712743839405,-282.16237035,0.00022,2]
[322073915,1712743839416,-238.65302526,0.00022,2]
[322073916,1712743839425,-1054.12784888,0.00022,2]
[322073917,1712743839434,-369.0,0.00022,2]
[322073918,1712743839443,-2423.95,0.0002204,2]
[322073919,1712743839452,-1328.767,0.00022133,2]
[322073920,1712743839461,-5711.0,0.00022133,2]
[322073921,1712743839471,-4796.0,0.00022133,2]
[322073922,1712743839481,-37570.0,0.00022133,2]
[322073923,1712743839490,-2463.0,0.00022133,2]
[322073924,1712743839500,-1052.0,0.00022133,2]
[322073925,1712743839508,-204.75357554,0.000223,2]
[322073926,1712743839517,-180.0,0.00022301,2]
[322073927,1712743839527,-2423.95,0.00022314,2]
[322073928,1712743839536,-1000.0,0.00022333,2]
[322073929,1712743839546,-189.124,0.0002237,2]
[322073930,1712743839555,-8666.62055554,0.00022373,2]
[322073931,1712743839563,-460.0,0.00022388,2]
[322073932,1712743839572,-1389.0,0.00022388,2]
[322073933,1712743839582,-966.0,0.00022388,2]
[322073934,1712743839590,-2288.0,0.00022388,2]
[322073935,1712743839599,-1228.0,0.00022388,2]
[322073936,1712743839609,-540.0,0.00022388,2]
[322073937,1712743839617,-1260.0,0.00022388,2]
[322073938,1712743839626,-611.475,0.00022388,2]
[322073939,1712743839636,-1945.0,0.00022388,2]
[322073940,1712743839645,-806.0,0.00022388,2]
[322073941,1712743839654,-435.0,0.00022388,2]
[322073942,1712743839662,-281.014,0.00022388,2]
[322073943,1712743839671,-3039.0,0.00022388,2]
[322073944,1712743839680,-1478.947,0.00022388,2]
[322073945,1712743839690,-436.6,0.00022388,2]
[322073946,1712743839699,-150.744,0.00022388,2]
[322073947,1712743839708,-1148.59,0.00022388,2]
[322073948,1712743839717,-2450.754,0.00022388,2]
[322073949,1712743839726,-150.638,0.00022388,2]
[322073950,1712743839734,-1645.002,0.00022388,2]
[322073951,1712743839743,-354.0,0.00022388,2]
[322073952,1712743839752,-155.85557092,0.00022425,2]
[322073953,1712743839761,-25675.34082882,0.000225,2]
[322073954,1712743839770,-2423.95,0.00022588,2]
[322073955,1712743839779,-2100.0,0.00022692,2]
[322073956,1712743839788,-150.0,0.00022692,2]
[322073957,1712743839799,-2423.95,0.00022862,2]
[322073958,1712743839808,-307.07035254,0.00023,2]
[322073959,1712743839819,-275.26446898,0.00023,2]
[322073960,1712743839828,-238.99138586,0.00023,2]
[322073961,1712743839836,-155.19215466,0.00023,2]
[322073962,1712743839845,-155.85557092,0.00023,2]
[322073963,1712743839854,-13173.8898689,0.0002301,2]
[322073964,1712743839863,-587.0,0.00023013,2]
[322073965,1712743839872,-524.0,0.00023013,2]
[322073966,1712743839882,-2423.95,0.00023136,2]
[322073967,1712743839891,-8666.62055554,0.00023209,2]
[322073968,1712743839900,-1000.0,0.00023288,2]
[322073969,1712743839909,-1000.0,0.00023288,2]
[322073970,1712743839917,-1000.0,0.00023288,2]
[322073971,1712743839926,-1000.0,0.00023288,2]
[322073972,1712743839935,-1000.0,0.00023288,2]
[322073974,1712743839944,-1000.0,0.00023288,2]
[322073975,1712743839953,-1000.0,0.00023288,2]
[322073977,1712743839962,-1000.0,0.00023288,2]
[322073979,1712743839971,-1000.0,0.00023288,2]
[322073981,1712743839980,-1000.0,0.00023288,2]
[322073983,1712743839989,-635.0,0.00023288,2]
[322073984,1712743839998,-2423.95,0.0002341,2]
[322073985,1712743840007,-167.49,0.00023444,2]
[322073986,1712743840016,-5000.0,0.000235,2]
[322073987,1712743840025,-155.85557092,0.00023575,2]
[322073988,1712743840034,-2423.95,0.00023684,2]
[322073989,1712743840043,-19460.06407151,0.000237,2]
[322073990,1712743840052,-311.84,0.00023773,2]
[322073991,1712743840061,-2423.95,0.00023958,2]
[322073992,1712743840071,-224.62727988,0.00024,2]
[322073993,1712743840080,-454.58628101,0.00024,2]
[322073994,1712743840089,-8666.62055554,0.00024045,2]
[322073995,1712743840098,-1500.0,0.0002408,2]
[322073996,1712743840107,-1031.16494158,0.000241,2]
[322073997,1712743840116,-1155.4,0.00024111,2]
[322073998,1712743840125,-155.85557092,0.0002415,2]
[322073999,1712743840134,-392.90980667,0.0002421,2]
[322074000,1712743840143,-2423.95,0.00024232,2]
[322074001,1712743840152,-524.0,0.00024246,2]
[322074002,1712743840303,-1203.88097616,0.0002425,2]
[322074003,1712743840314,-152.49924889,0.0002442,2]
[322074004,1712743840324,-2423.95,0.00024506,2]
[322074005,1712743840334,-150.0,0.00024689,10]
[322074006,1712743840343,-149089.15696195,0.0002469,5]
[322074007,1712743840352,-155.85557092,0.00024725,2]
[322074008,1712743840362,-2423.95,0.0002478,2]
[322074009,1712743840371,-2223.73711434,0.000248,2]
[322074010,1712743840381,-1000.0,0.00024815,2]
[322074011,1712743840391,-8666.62055554,0.00024882,2]
[322074012,1712743840400,-172.88861368,0.00025,2]
[322074013,1712743840410,-8261.6764705,0.00025,4]
[322074014,1712743840420,-1361.64470333,0.00025,2]
[322074015,1712743840429,-2603.52703539,0.00025,2]
[322074016,1712743840439,-699.47,0.00025,2]
[322074017,1712743840448,-858.03,0.00025,2]
[322074018,1712743840457,-2423.95,0.00025054,2]
[322074019,1712743840467,-1313.0,0.00025133,2]
[322074020,1712743840477,-5703.0,0.00025133,2]
[322074021,1712743840487,-4790.0,0.00025133,2]
[322074022,1712743840497,-14440.152,0.00025133,2]
[322074023,1712743840506,-2459.0,0.00025133,2]
[322074024,1712743840515,-757.298,0.00025133,2]
[322074025,1712743840524,-155.85557092,0.000253,2]
[322074026,1712743840534,-2423.95,0.00025328,2]
[322074027,1712743840543,-456.0,0.00025388,2]
[322074028,1712743840552,-1387.0,0.00025388,2]
[322074029,1712743840561,-966.0,0.00025388,2]
[322074030,1712743840570,-2284.0,0.00025388,2]
[322074031,1712743840579,-1228.0,0.00025388,2]
[322074032,1712743840588,-533.0,0.00025388,2]
[322074033,1712743840597,-1258.0,0.00025388,2]
[322074034,1712743840607,-607.0,0.00025388,2]
[322074035,1712743840616,-806.0,0.00025388,2]
[322074036,1712743840625,-1943.0,0.00025388,2]
[322074037,1712743840634,-431.0,0.00025388,2]
[322074038,1712743840643,-280.0,0.00025388,2]
[322074039,1712743840653,-3035.0,0.00025388,2]
[322074040,1712743840662,-1470.0,0.00025388,2]
[322074041,1712743840671,-398.0,0.00025388,2]
[322074042,1712743840681,-1140.0,0.00025388,2]
[322074043,1712743840690,-2437.0,0.00025388,2]
[322074044,1712743840699,-1635.0,0.00025388,2]
[322074045,1712743840708,-152.0,0.00025388,2]
[322074046,1712743840718,-524.0,0.00025479,2]
[322074047,1712743840727,-2423.95,0.00025602,2]
[322074048,1712743840737,-8666.62055554,0.00025718,2]
[322074049,1712743840746,-155.85557092,0.00025875,2]
[322074050,1712743840755,-2423.95,0.00025876,2]
[322074051,1712743840764,-351.7,0.00025893,2]
[322074052,1712743840773,-393.98000001,0.00026,2]
[322074053,1712743840782,-161.80937703,0.00026035,2]
[322074054,1712743840791,-311.84,0.00026037,2]
[322074055,1712743840801,-151.71124129,0.00026123,2]
[322074056,1712743840811,-156.01719987,0.00026141,2]
[322074057,1712743840820,-2423.95,0.0002615,2]
[322074058,1712743840829,-156.01719987,0.00026165,2]
[322074059,1712743840838,-150.20449643,0.00026172,2]
[322074060,1712743840848,-150.20449643,0.00026185,2]
[322074061,1712743840857,-162.66547928,0.00026247,2]
[322074062,1712743840866,-150.95912378,0.00026256,2]
[322074063,1712743840875,-153.7660665,0.00026289,2]
[322074064,1712743840885,-156.01719987,0.0002631,2]
[322074065,1712743840894,-162.66547928,0.00026405,2]
[322074066,1712743840904,-2423.95,0.00026424,2]
[322074067,1712743840913,-154.4957932,0.00026442,2]
[322074068,1712743840923,-155.85557092,0.0002645,2]
[322074069,1712743840932,-150.20449643,0.00026513,2]
[322074070,1712743840942,-161.18289218,0.0002655,2]
[322074071,1712743840951,-161.18289218,0.00026553,2]
[322074072,1712743840961,-8666.62055554,0.00026555,2]
[322074073,1712743840970,-151.71124129,0.00026557,2]
[322074074,1712743840980,-153.7660665,0.0002658,2]
[322074075,1712743840989,-150.20449643,0.00026614,2]
[322074076,1712743840999,-2424.13177036,0.00026698,2]
[322074077,1712743841009,-524.0,0.00026712,2]
[322074078,1712743841018,-156.01719987,0.00026738,2]
[322074079,1712743841027,-161.18289218,0.00026802,2]
[322074080,1712743841038,-151.71124129,0.00026874,2]
[322074081,1712743841047,-158.22335407,0.00026885,2]
[322074082,1712743841057,-1000.0,0.00027,2]
[322074083,1712743841067,-155.85557092,0.00027025,2]
[322074084,1712743841076,-150.20449643,0.0002703,2]
[322074085,1712743841085,-162.66547928,0.00027042,2]
[322074086,1712743841095,-158.58774655,0.00027217,2]
[322074087,1712743841104,-153.88972214,0.00027246,2]
[322074088,1712743841114,-1000.0,0.00027296,2]
[322074089,1712743841123,-156.92392735,0.00027299,2]
[322074090,1712743841132,-161.18289218,0.0002737,2]
[322074091,1712743841142,-8666.62055554,0.00027391,2]
[322074092,1712743841151,-362.30639052,0.00027397,2]
[322074093,1712743841161,-900.0,0.00027397,2]
[322074094,1712743841170,-5000.0,0.000274,2]
[322074095,1712743841179,-154.98939765,0.00027422,2]
[322074096,1712743841190,-156.01719987,0.00027428,2]
[322074097,1712743841199,-161.18289218,0.00027431,2]
[322074098,1712743841209,-153.88972214,0.00027481,2]
[322074099,1712743841219,-151.71124129,0.00027599,2]
[322074100,1712743841235,-699.47,0.000276,2]
[322074101,1712743841245,-858.03,0.000276,2]
[322074102,1712743841254,-155.85557092,0.000276,2]
[322074103,1712743841264,-161.18289218,0.00027603,2]
[322074104,1712743841274,-156.92392735,0.00027788,2]
[322074105,1712743841283,-151.71124129,0.00027826,2]
[322074106,1712743841293,-150.20449643,0.00027937,2]
[322074107,1712743841304,-524.0,0.00027945,2]
[322074108,1712743841314,-1153.25008438,0.00028,2]
[322074109,1712743841324,-156.01719987,0.00028053,2]
[322074110,1712743841333,-200.0,0.00028076,7]
[322074111,1712743841343,-155.85557092,0.00028175,2]
[322074112,1712743841352,-8666.62055554,0.00028227,2]
[322074113,1712743841362,-156.01719987,0.00028269,2]
[322074114,1712743841371,-311.84,0.00028301,2]
[322074115,1712743841381,-161.18289218,0.0002834,2]
[322074116,1712743841391,-156.92392735,0.00028356,2]
[322074117,1712743841400,-6924.06841522,0.00028383,2]
[322074118,1712743841410,-161.18289218,0.00028512,2]
[322074119,1712743841419,-156.01719987,0.00028606,2]
[322074120,1712743841429,-151.71124129,0.00028652,2]
[322074121,1712743841438,-150.95912378,0.00028736,2]
[322074122,1712743841448,-155.85557092,0.0002875,2]
[322074123,1712743841458,-153.88972214,0.00028759,2]
[322074124,1712743841467,-161.18289218,0.00028981,2]
[322074125,1712743841477,-153.99568917,0.00028995,2]
[322074126,1712743841487,-12946.10756927,0.00029,2]
[322074127,1712743841497,-156.91,0.00029,2]
[322074128,1712743841506,-156.91,0.00029,2]
[322074129,1712743841515,-156.91,0.00029,2]
[322074130,1712743841525,-156.91,0.00029,2]
[322074131,1712743841535,-156.91,0.00029,2]
[322074132,1712743841544,-156.91,0.00029,2]
[322074133,1712743841554,-156.91,0.00029,2]
[322074134,1712743841563,-156.91,0.00029,2]
[322074135,1712743841573,-156.91,0.00029,2]
[322074136,1712743841582,-156.91,0.00029,2]
[322074137,1712743841592,-156.91,0.00029,2]
[322074138,1712743841601,-156.91,0.00029,2]
[322074139,1712743841611,-156.91,0.00029,2]
[322074140,1712743841620,-156.91,0.00029,2]
[322074141,1712743841630,-156.91,0.00029,2]
[322074142,1712743841640,-156.91,0.00029,2]
[322074143,1712743841650,-156.91,0.00029,2]
[322074144,1712743841659,-156.91,0.00029,2]
[322074145,1712743841669,-156.91,0.00029,2]
[322074146,1712743841678,-156.91,0.00029,2]
[322074147,1712743841688,-156.91,0.00029,2]
[322074148,1712743841698,-156.91,0.00029,2]
[322074149,1712743841708,-156.91,0.00029,2]
[322074150,1712743841717,-156.91,0.00029,2]
[322074151,1712743841727,-156.91,0.00029,2]
[322074152,1712743841736,-156.91,0.00029,2]
[322074153,1712743841746,-156.91,0.00029,2]
[322074154,1712743841755,-156.91,0.00029,2]
[322074155,1712743841764,-156.91,0.00029,2]
[322074156,1712743841774,-156.91,0.00029,2]
[322074157,1712743841783,-156.91,0.00029,2]
[322074158,1712743841793,-156.91,0.00029,2]
[322074159,1712743841804,-156.91,0.00029,2]
[322074160,1712743841813,-156.91,0.00029,2]
[322074161,1712743841822,-156.91,0.00029,2]
[322074162,1712743841832,-156.91,0.00029,2]
[322074163,1712743841842,-156.91,0.00029,2]
[322074164,1712743841851,-156.91,0.00029,2]
[322074165,1712743841861,-156.91,0.00029,2]
[322074166,1712743841870,-156.91,0.00029,2]
[322074167,1712743841879,-156.91,0.00029,2]
[322074168,1712743841888,-156.91,0.00029,2]
[322074169,1712743841898,-156.91,0.00029,2]
[322074170,1712743841907,-156.91,0.00029,2]
[322074171,1712743841916,-156.91,0.00029,2]
[322074172,1712743841925,-156.91,0.00029,2]
[322074173,1712743841934,-156.91,0.00029,2]
[322074174,1712743841944,-156.91,0.00029,2]
[322074175,1712743841953,-156.91,0.00029,2]
[322074176,1712743841962,-156.91,0.00029,2]
[322074177,1712743841971,-156.91,0.00029,2]
[322074178,1712743841980,-156.91,0.00029,2]
[322074179,1712743841989,-156.91,0.00029,2]
[322074180,1712743841999,-156.91,0.00029,2]
[322074181,1712743842008,-156.91,0.00029,2]
[322074182,1712743842018,-156.91,0.00029,2]
[322074183,1712743842027,-151.71124129,0.0002905,2]
[322074184,1712743842036,-8666.62055554,0.00029064,2]
[322074185,1712743842048,-524.0,0.00029178,2]
[322074186,1712743842058,-699.47,0.000293,2]
[322074187,1712743842067,-858.03,0.000293,2]
[322074188,1712743842077,-151.0,0.00029309,2]
[322074189,1712743842086,-155.85557092,0.00029325,2]
[322074190,1712743842096,-156.08416384,0.00029326,2]
[322074191,1712743842105,-441.77418907,0.000295,3]
[322074192,1712743842114,-1000.0,0.00029778,2]
[322074193,1712743842124,-156.01719987,0.00029876,2]
[322074195,1712743842133,-156.14906209,0.00029898,2]
[322074198,1712743842142,-8666.62055554,0.000299,2]
[322074199,1712743842151,-155.85557092,0.000299,2]
[322074201,1712743842160,-150.0,0.00029999,10]
[322074204,1712743842170,-100000.0,0.0003,10]
[322074205,1712743842179,-579.42400173,0.0003,4]
[322074207,1712743842189,-2289.8676829,0.0003,4]
[322074209,1712743842198,-27588.03636947,0.0003,4]
[322074211,1712743842207,-455.35697942,0.0003,2]
[322074213,1712743842216,-594.70721441,0.0003,2]
[322074215,1712743842225,-224.37683634,0.0003,4]
[322074217,1712743842239,-33888.96520615,0.0003,4]
[322074219,1712743842248,-6939.13491161,0.0003,2]
[322074221,1712743842258,-2786.36831872,0.0003,4]
[322074223,1712743842268,-448.62769266,0.0003,7]
[322074225,1712743842278,-219.25888395,0.0003,2]
[322074227,1712743842288,-155.0,0.0003,2]
[322074229,1712743842300,-400.0,0.0003,2]
[322074231,1712743842311,-14672374.56815267,0.0003,2]
[322074235,1712743842451,-1755.45102661,0.0003,2]
[322074236,1712743842491,-156.91,0.00029,2]
[322074237,1712743842540,-156.91,0.00029,2]
[322074238,1712743842552,-156.91,0.00029,2]
[322074239,1712743842562,-156.91,0.00029,2]
[322074240,1712743842572,-156.91,0.00029,2]
[322074241,1712743842580,-156.91,0.00029,2]
[322074242,1712743842590,-156.91,0.00029,2]
[322074243,1712743842599,-401.62064055,0.0003,2]
[322074244,1712743842611,-1344.87136576,0.0003,2]
[322074245,1712743842626,-156.91,0.00029,2]
[322074246,1712743842636,-504417.81891476,0.0003,2]
[322074247,1712743842645,-158.97,0.0003,2]
[322074248,1712743842654,-151.0,0.0003,7]
[322074249,1712743842664,-154.47658,0.0003,7]
[322074250,1712743842673,-264.16591805,0.0003,5]
[322074251,1712743842682,-151.446785,0.0003,7]
[322074252,1712743842692,-251.730071,0.0003,7]
[322074253,1712743842701,-151.0,0.0003,7]
[322074254,1712743842711,-151.0,0.0003,7]
[322074255,1712743842721,-151.0,0.0003,7]
[322074256,1712743842731,-151.0,0.0003,7]
[322074257,1712743842740,-151.0,0.0003,7]
[322074258,1712743842750,-151.0,0.0003,7]
[322074259,1712743842759,-151.0,0.0003,7]
[322074260,1712743842768,-16665.71353346,0.0003,2]
[322074261,1712743842778,-213.073193,0.0003,7]
[322074262,1712743842787,-213.073193,0.0003,7]
[322074263,1712743842797,-151.0,0.0003,7]
[322074264,1712743842806,-151.0,0.0003,7]
[322074265,1712743842816,-151.0,0.0003,7]
[322074266,1712743842826,-151.0,0.0003,7]
[322074267,1712743842835,-151.0,0.0003,7]
[322074268,1712743842844,-151.0,0.0003,7]
[322074269,1712743842854,-151.0,0.0003,7]
[322074270,1712743842862,-151.0,0.0003,7]
[322074271,1712743842872,-151.0,0.0003,7]
[322074272,1712743842881,-151.0,0.0003,7]
[322074273,1712743842890,-151.0,0.0003,7]
[322074274,1712743842899,-151.0,0.0003,7]
[322074275,1712743842909,-151.0,0.0003,7]
[322074276,1712743842918,-151.0,0.0003,7]
[322074277,1712743842927,-151.0,0.0003,7]
[322074278,1712743842936,-151.0,0.0003,2]
[322074279,1712743842945,-151.0,0.0003,7]
[322074280,1712743842954,-151.0,0.0003,7]
[322074281,1712743842962,-151.0,0.0003,7]
[322074282,1712743842972,-151.827278,0.0003,7]
[322074283,1712743842981,-151.0,0.0003,7]
[322074284,1712743842990,-322.988531,0.0003,7]
[322074285,1712743842999,-322.988531,0.0003,7]
[322074286,1712743843008,-151.0,0.0003,7]
[322074287,1712743843017,-206.0,0.0003,2]
[322074288,1712743843026,-151.0,0.0003,7]
[322074289,1712743843036,-151.0,0.0003,7]
[322074290,1712743843045,-151.0,0.0003,7]
[322074291,1712743843053,-151.0,0.0003,7]
[322074292,1712743843063,-151.0,0.0003,7]
[322074293,1712743843072,-294.843849,0.0003,7]
[322074294,1712743843081,-151.0,0.0003,7]
[322074295,1712743843090,-294.843849,0.0003,7]
[322074296,1712743843098,-151.0,0.0003,7]
[322074297,1712743843108,-151.0,0.0003,7]
[322074298,1712743843117,-151.0,0.0003,7]
[322074300,1712743843126,-151.0,0.0003,7]
[322074301,1712743843135,-151.0,0.0003,7]
[322074303,1712743843145,-151.0,0.0003,7]
[322074305,1712743843154,-151.0,0.0003,7]
[322074307,1712743843163,-151.0,0.0003,7]
[322074310,1712743843172,-151.0,0.0003,7]
[322074312,1712743843181,-151.0,0.0003,7]
[322074313,1712743843190,-264.02511,0.0003,7]
[322074314,1712743843199,-151.0,0.0003,7]
[322074315,1712743843207,-777.838234,0.0003,7]
[322074316,1712743843216,-777.838234,0.0003,7]
[322074317,1712743843225,-151.0,0.0003,7]
[322074318,1712743843237,-151.0,0.0003,7]
[322074319,1712743843246,-151.0,0.0003,7]
[322074320,1712743843254,-151.0,0.0003,7]
[322074321,1712743843263,-151.0,0.0003,7]
[322074322,1712743843273,-151.0,0.0003,7]
[322074323,1712743843282,-151.0,0.0003,7]
[322074324,1712743843290,-151.0,0.0003,7]
[322074325,1712743843301,-151.0,0.0003,7]
[322074326,1712743843310,-151.0,0.0003,7]
[322074327,1712743843319,-151.0,0.0003,7]
[322074328,1712743843328,-151.0,0.0003,7]
[322074329,1712743843338,-151.0,0.0003,7]
[322074330,1712743843347,-151.0,0.0003,7]
[322074331,1712743843356,-156.01719987,0.00030068,7]
[322074332,1712743843365,-5000.0,0.000301,2]
[322074333,1712743843374,-153.7660665,0.00030292,7]
[322074334,1712743843383,-151.71124129,0.00030386,7]
[322074335,1712743843391,-531.0,0.0003041,2]
[322074336,1712743843400,-151.71124129,0.0003044,7]
[322074337,1712743843409,-153.7660665,0.00030464,7]
[322074338,1712743843418,-200.0,0.00030491,2]
[322074339,1712743843427,-1000.0,0.00030491,8]
[322074340,1712743843436,-500.0,0.00030491,2]
[322074341,1712743843445,-200.0,0.00030491,2]
[322074342,1712743843455,-161.18289218,0.00030498,7]
[322074343,1712743843463,-158.58774655,0.0003052,7]
[322074344,1712743843472,-311.84,0.00030565,2]
[322074345,1712743843482,-151.71124129,0.00030577,7]
[322074346,1712743843491,-161.95655029,0.00030602,7]
[322074347,1712743843500,-156.08416384,0.0003061,7]
[322074348,1712743843509,-150.0,0.000309,2]
[322074349,1712743843519,-156.01719987,0.00030964,7]
[322074350,1712743843528,-100000.0,0.00031,11]
[322074351,1712743843537,-490.69655097,0.00031,4]
[322074352,1712743843547,-158.97,0.00031,2]
[322074353,1712743843557,-158.97,0.00031,2]
[322074354,1712743843566,-699.47,0.000311,2]
[322074355,1712743843574,-858.03,0.000311,2]
[322074356,1712743843583,-188.40492998,0.00031106,4]
[322074357,1712743843592,-7999.99,0.000312,2]
[322074358,1712743843602,-7999.99,0.000312,2]
[322074359,1712743843611,-300.0,0.00031235,7]
[322074360,1712743843620,-614.57,0.00031256,2]
[322074361,1712743843628,-603.53,0.00031318,2]
[322074362,1712743843637,-585.15,0.00031375,2]
[322074363,1712743843647,-150.0,0.000314,3]
[322074364,1712743843656,-922.23,0.00031408,2]
[322074365,1712743843666,-161.18289218,0.00031426,7]
[322074366,1712743843675,-989.58,0.00031449,2]
[322074367,1712743843685,-300.0,0.00031485,7]
[322074368,1712743843694,-8048.96,0.0003149,2]
[322074369,1712743843703,-154.98939765,0.00031595,7]
[322074370,1712743843712,-161.18289218,0.00031617,7]
[322074371,1712743843721,-354.69,0.00031644,2]
[322074372,1712743843730,-161.18289218,0.00031695,7]
[322074373,1712743843739,-1002.84,0.000317,2]
[322074374,1712743843748,-309.76,0.000317,2]
[322074375,1712743843758,-449.01,0.00031707,2]
[322074376,1712743843767,-426.14410958,0.00031727,4]
[322074377,1712743843778,-300.0,0.00031735,7]
[322074378,1712743843787,-159.97777043,0.00031741,4]
[322074379,1712743843799,-8788.60121693,0.00031741,4]
[322074380,1712743843809,-207.17268762,0.00031741,4]
[322074381,1712743843818,-289.13586379,0.00031741,4]
[322074382,1712743843827,-161.1031879,0.00031753,4]
[322074383,1712743843836,-206.27456611,0.00031753,4]
[322074384,1712743843845,-155.0,0.00031753,4]
[322074385,1712743843854,-156.01719987,0.00031774,7]
[322074386,1712743843863,-7257.6,0.00031788,5]
[322074387,1712743843872,-151.71124129,0.00031845,7]
[322074388,1712743843881,-158.97,0.000319,2]
[322074389,1712743843890,-158.97,0.000319,2]
[322074390,1712743843899,-150.0,0.000319,3]
[322074391,1712743843908,-750.0,0.00031914,2]
[322074392,1712743843917,-334.0,0.00031914,2]
[322074393,1712743843926,-474.0,0.00031914,2]
[322074394,1712743843935,-300.0,0.00031985,7]
[322074395,1712743843944,-100000.0,0.00032,12]
[322074396,1712743843953,-779.93752883,0.00032,7]
[322074397,1712743843962,-569.34267863,0.00032,4]
[322074398,1712743843971,-273.15145664,0.00032,4]
[322074399,1712743843979,-156.03441794,0.00032,5]
[322074400,1712743843988,-519.18217286,0.00032,55]
[322074401,1712743843997,-300.0,0.00032,7]
[322074402,1712743844006,-300.0,0.00032,7]
[322074403,1712743844015,-1002.84,0.00032,2]
[322074404,1712743844024,-309.76,0.00032,2]
[322074405,1712743844033,-161.80937705,0.00032231,7]